{"text_format":"3","workbook":"xlsx","n_sheets":3,"sheets":["Elenco studenti","Registro di classe","Dettagli studenti"],"not_rendered":{"images":2,"defined_names":8},"read":"whole","date_system":"1900"}

{"sheet":"Elenco studenti","index":0,"n_rows":8,"n_cols":13,"rows_kept":8,"merged":[[1,2,2,3],[1,4,1,11],[2,4,2,11],[6,12,8,16]]}
[]
[null,null,"Elenco degli studenti",null,"ANDARE AL REGISTRO DI CLASSE"]
[{"$nulls":4},"ANDARE AI DETTAGLI DEGLI STUDENTI"]
[null,null,"NOME STUDENTE","POSTA ELETTRONICA","TELEFONO ABITAZIONE","CELLULARE","DATA DI NASCITA","CONTATTO DI EMERGENZA","TELEFONO DI EMERGENZA","MEDICO","NUMERO DI TELEFONO DEL MEDICO","  "]
[null,null,"Nome 1","Indirizzo di posta elettronica","Telefono abitazione","Cellulare","Data","Contatto 1","Numero di telefono di emergenza","Medico 1","Numero di telefono del medico"]
[null,null,"Nome 2","Indirizzo di posta elettronica","Telefono abitazione","Cellulare","Data","Contatto 2","Numero di telefono di emergenza","Medico 2","Numero di telefono del medico"]
[null,null,"Nome 3","Indirizzo di posta elettronica","Telefono abitazione","Cellulare","Data","Contatto 3","Numero di telefono di emergenza","Medico 3","Numero di telefono del medico",null,"Suggerimento: per aggiungere altri studenti, premere il tasto TAB nell’ultima cella della tabella."]
[null,null,"Nome 4","Indirizzo di posta elettronica","Telefono abitazione","Cellulare","Data","Contatto 4","Numero di telefono di emergenza","Medico 4","Numero di telefono del medico"]

{"sheet":"Registro di classe","index":1,"n_rows":12,"n_cols":7,"rows_kept":12,"merged":[[1,2,2,2],[1,3,2,3],[1,4,1,6],[2,4,2,6]]}
[]
[null,null,"Registro di classe","Graphic Design Institute","ANDARE ALL’ELENCO DEGLI STUDENTI"]
[{"$nulls":4},"ANDARE AI DETTAGLI DEGLI STUDENTI"]
[null,null,"CORSO","Nome del corso","DATA DI INIZIO","Data"]
[null,null,"DOCENTE","Docente 1","DATA DI FINE","Data"]
[null,null,"STUDENTI ISCRITTI",{"$f":"COUNTA(RegistroClasse[NOME STUDENTE])","v":4}]
[]
[null,null,"NOME STUDENTE","POSTA ELETTRONICA","TELEFONO ABITAZIONE","CELLULARE","  "]
[null,null,"Nome 1",{"$f":"IFERROR(VLOOKUP(RegistroClasse[[#This Row],[NOME STUDENTE]],Studenti[],2),\"\")","v":"Indirizzo di posta elettronica"},{"$f":"IFERROR(VLOOKUP(RegistroClasse[[#This Row],[NOME STUDENTE]],Studenti[],3),\"\")","v":"Telefono abitazione"},{"$f":"IFERROR(VLOOKUP(RegistroClasse[[#This Row],[NOME STUDENTE]],Studenti[],4),\"\")","v":"Cellulare"}]
[null,null,"Nome 2",{"$f":"IFERROR(VLOOKUP(RegistroClasse[[#This Row],[NOME STUDENTE]],Studenti[],2),\"\")","v":"Indirizzo di posta elettronica"},{"$f":"IFERROR(VLOOKUP(RegistroClasse[[#This Row],[NOME STUDENTE]],Studenti[],3),\"\")","v":"Telefono abitazione"},{"$f":"IFERROR(VLOOKUP(RegistroClasse[[#This Row],[NOME STUDENTE]],Studenti[],4),\"\")","v":"Cellulare"}]
[null,null,"Nome 3",{"$f":"IFERROR(VLOOKUP(RegistroClasse[[#This Row],[NOME STUDENTE]],Studenti[],2),\"\")","v":"Indirizzo di posta elettronica"},{"$f":"IFERROR(VLOOKUP(RegistroClasse[[#This Row],[NOME STUDENTE]],Studenti[],3),\"\")","v":"Telefono abitazione"},{"$f":"IFERROR(VLOOKUP(RegistroClasse[[#This Row],[NOME STUDENTE]],Studenti[],4),\"\")","v":"Cellulare"}]
[null,null,"Nome 4",{"$f":"IFERROR(VLOOKUP(RegistroClasse[[#This Row],[NOME STUDENTE]],Studenti[],2),\"\")","v":"Indirizzo di posta elettronica"},{"$f":"IFERROR(VLOOKUP(RegistroClasse[[#This Row],[NOME STUDENTE]],Studenti[],3),\"\")","v":"Telefono abitazione"},{"$f":"IFERROR(VLOOKUP(RegistroClasse[[#This Row],[NOME STUDENTE]],Studenti[],4),\"\")","v":"Cellulare"}]

{"sheet":"Dettagli studenti","index":2,"n_rows":13,"n_cols":4,"rows_kept":13,"merged":[[1,2,2,2],[1,3,1,4],[2,3,2,4],[3,2,3,3]]}
[]
[null,null,"Dettagli degli studenti","ANDARE ALL’ELENCO DEGLI STUDENTI"]
[{"$nulls":3},"ANDARE AL REGISTRO DI CLASSE"]
[null,null,"SUGGERIMENTO: SELEZIONARE UNO STUDENTE DALL’ELENCO A DISCESA NELLA CELLA D5 PER AGGIORNARE I DETTAGLI"]
[null,null,"NOME STUDENTE","Nome 1"]
[null,null,"POSTA ELETTRONICA",{"$f":"IFERROR(VLOOKUP(NomeStudente,Studenti[],2,FALSE),\"\")","v":"Indirizzo di posta elettronica"}]
[null,null,"TELEFONO ABITAZIONE",{"$f":"IFERROR(VLOOKUP(NomeStudente,Studenti[],3,FALSE),\"\")","v":"Telefono abitazione"}]
[null,null,"CELLULARE",{"$f":"IFERROR(VLOOKUP(NomeStudente,Studenti[],4,FALSE),\"\")","v":"Cellulare"}]
[null,null,"DATA DI NASCITA",{"$f":"IFERROR(VLOOKUP(NomeStudente,Studenti[],5,FALSE),\"\")","v":"Data"}]
[null,null,"CONTATTO DI EMERGENZA",{"$f":"IFERROR(VLOOKUP(NomeStudente,Studenti[],6,FALSE),\"\")","v":"Contatto 1"}]
[null,null,"TELEFONO DI EMERGENZA",{"$f":"IFERROR(VLOOKUP(NomeStudente,Studenti[],7,FALSE),\"\")","v":"Numero di telefono di emergenza"}]
[null,null,"MEDICO",{"$f":"IFERROR(VLOOKUP(NomeStudente,Studenti[],8,FALSE),\"\")","v":"Medico 1"}]
[null,null,"NUMERO DI TELEFONO DEL MEDICO",{"$f":"IFERROR(VLOOKUP(NomeStudente,Studenti[],9,FALSE),\"\")","v":"Numero di telefono del medico"}]